[Event "EYCC Girls-U18 2019"]
[Site "Bratislava"]
[Date "2019.08.05"]
[Round "4.19"]
[White "Smetisko, Marija"]
[Black "Redondo Benavente, Ana"]
[Result "0-1"]
[ECO "C54"]
[WhiteElo "1814"]
[BlackElo "2176"]
[Annotator "NA"]
[PlyCount "60"]
[EventDate "2019.08.02"]
[EventType "swiss"]
[EventCountry "SVK"]
[SourceTitle "playchess.com"]
[Source "ChessBase"]
[SourceQuality "1"]
[TimeControl "40/5400+30:1800+30"]

1. e4 {[%emt 0:00:00]} e5 {[%emt 0:00:00]} 2. Nf3 {[%emt 0:00:00]} Nc6 {[%emt 0:00:00]} 3. Bc4 {[%emt 0:00:00]} Bc5 {[%emt 0:00:00]} 4. c3 {[%emt 0:01:31]} Nf6 {[%emt 0:00:04]} 5. d3 {[%emt 0:00:07]} O-O {[%emt 0:00:37]} 6. b4 {[%emt 0:13:47]} Be7 {[%emt 0:02:34]} 7. O-O {[%emt 0:04:36]} d5 {[%emt 0:03:13]} 8. exd5 {[%emt 0:02:00]} Nxd5 {[%emt 0:00:17]} 9. h3 {[%emt 0:06:29]} a6 {[%emt 0:01:25]} 10. Re1 {[%emt 0:02:29]} Bf6 {[%emt 0:05:55]} 11. Nfd2 {[%emt 0:07:59]} Ndxb4 {[%emt 0:14:08]} 12. Ne4 {[%emt 0:09:22]} Nd5 {[%emt 0:17:21]} 13. Bxd5 {[%emt 0:00:36]} Qxd5 {[%emt 0:00:01]} 14. Nxf6+ {[%emt 0:00:20]} gxf6 {[%emt 0:00:02]} 15. Bh6 {[%emt 0:10:17]} Rd8 {[%emt 0:02:29]} 16. Qh5 {[%emt 0:16:34]} Qxd3 {[%emt 0:17:21]} 17. Qh4 {[%emt 0:01:35]} Qg6 {[%emt 0:00:48]} 18. Re3 {[%emt 0:00:29]} Rd3 {[%emt 0:00:48]} 19. Nd2 {[%emt 0:04:07]} Bf5 {[%emt 0:07:34]} 20. g4 {[%emt 0:05:48]} Rxe3 {[%emt 0:04:07]} 21. fxe3 {[%emt 0:02:03]} Bd3 {[%emt 0:00:22]} 22. e4 {[%emt 0:00:59]} Rd8 {[%emt 0:02:08]} 23. Kh2 {[%emt 0:01:25]} Rd6 {[%emt 0:06:44]} 24. g5 {[%emt 0:03:20]} f5 {[%emt 0:00:42]} 25. Nf1 {[%emt 0:03:36]} Bxe4 {[%emt 0:03:43]} 26. Ng3 {[%emt 0:00:03]} Rd2+ {[%emt 0:01:32]} 27. Kg1 {[%emt 0:00:01]} Bf3 {[%emt 0:00:48]} 28. Rb1 {[%emt 0:02:24]} f4 {[%emt 0:01:32]} 29. Rxb7 {[%emt 0:01:10]} Rg2+ {[%emt 0:01:01]} 30. Kf1 {[%emt 0:00:35]} Qd3+ {[%emt 0:00:29]} 0-1

[Event "EYCC Girls-U18 2019"]
[Site "Bratislava"]
[Date "2019.08.05"]
[Round "4.20"]
[White "Buchta, Agnieszka"]
[Black "Moscicka, Pola"]
[Result "1-0"]
[ECO "B30"]
[WhiteElo "1818"]
[BlackElo "1870"]
[Annotator "NA"]
[PlyCount "79"]
[EventDate "2019.08.02"]
[EventType "swiss"]
[EventCountry "SVK"]
[SourceTitle "playchess.com"]
[Source "ChessBase"]
[SourceQuality "1"]
[TimeControl "40/5400+30:1800+30"]

1. e4 {[%emt 0:00:00]} c5 {[%emt 0:00:00]} 2. Nf3 {[%emt 0:00:00]} Nc6 {[%emt 0:00:00]} 3. Nc3 {[%emt 0:00:00]} e5 {[%emt 0:00:00]} 4. Bc4 {[%emt 0:00:45]} Be7 {[%emt 0:00:11]} 5. d3 {[%emt 0:01:24]} d6 {[%emt 0:00:09]} 6. O-O {[%emt 0:02:21]} Nf6 {[%emt 0:00:11]} 7. Ng5 {[%emt 0:05:18]} O-O {[%emt 0:00:13]} 8. f4 {[%emt 0:00:28]} exf4 {[%emt 0:02:39]} 9. Bxf4 {[%emt 0:03:44]} Bg4 {[%emt 0:00:21]} 10. Qd2 {[%emt 0:10:42]} Nd4 {[%emt 0:05:34]} 11. Rf2 {[%emt 0:10:54]} Qd7 {[%emt 0:10:12]} 12. a4 {[%emt 0:04:25]} h6 {[%emt 0:06:36]} 13. Nf3 {[%emt 0:03:44]} Bxf3 {[%emt 0:02:06]} 14. gxf3 {[%emt 0:00:45]} Qh3 {[%emt 0:00:45]} 15. Raf1 {[%emt 0:04:58]} Kh7 {[%emt 0:07:47]} 16. Ne2 {[%emt 0:13:21]} Nxe2+ {[%emt 0:05:53]} 17. Qxe2 {[%emt 0:01:12]} Rad8 {[%emt 0:10:09]} 18. Rg2 {[%emt 0:12:58]} Nh5 {[%emt 0:09:48]} 19. Bd2 Bf6 20. f4 {[%emt 0:03:26]} g6 {[%emt 0:05:38]} 21. f5 gxf5 {[%emt 0:08:06]} 22. Rf3 {[%emt 0:12:46]} Qh4 {[%emt 0:03:25]} 23. Be1 {[%emt 0:02:00]} Bd4+ {[%emt 0:03:00]} 24. Kh1 {[%emt 0:00:23]} Qe7 {[%emt 0:00:39]} 25. Rxf5 {[%emt 0:01:45]} Ng7 {[%emt 0:00:38]} 26. Rf1 {[%emt 0:02:14]} Ne6 {[%emt 0:01:13]} 27. Qh5 {[%emt 0:01:25]} Be3 {[%emt 0:04:55]} 28. Bh4 {[%emt 0:02:19]} Bg5 {[%emt 0:01:17]} 29. Bxe6 {[%emt 0:00:26]} fxe6 {[%emt 0:02:59]} 30. Rxf8 {[%emt 0:00:42]} Rxf8 {[%emt 0:00:01]} 31. Rxg5 {[%emt 0:00:34]} Rf1+ {[%emt 0:00:24]} 32. Rg1 {[%emt 0:00:19]} Qf8 {[%emt 0:00:06]} 33. Qg4 {[%emt 0:00:33]} Qf7 {[%emt 0:00:39]} 34. Qg2 {[%emt 0:00:26]} Rf4 {[%emt 0:00:32]} 35. Bg3 {[%emt 0:00:23]} Rf6 {[%emt 0:00:06]} 36. Bh4 {[%emt 0:00:35]} Rf4 {[%emt 0:00:19]} 37. Bg3 {[%emt 0:00:05]} Rf6 {[%emt 0:00:01]} 38. e5 {[%emt 0:00:45]} Rf5 {[%emt 0:01:17]} 39. exd6 {[%emt 0:00:15]} e5 {[%emt 0:00:02]} 40. Qe4 {[%emt 0:00:00]} 1-0